bitfinex-derivatives/quotes_ETHF0:USTF0_20250926
["timestamp","ask_amount","ask_price","bid_price","bid_amount"]
[1758921401608,1.19099,4014.0,4013.9,1.92598283]
[1758921402009,1.19099,4014.0,4013.9,1.0319]
[1758921404203,0.44812,4013.8,4013.7,1.34360556]
[1758921404402,1.19802,4013.8,4013.7,0.25448132]
[1758921404701,1.19802,4013.8,4013.7,0.22598132]
[1758921404910,1.19802,4013.8,4013.7,1.02968132]
[1758921405106,0.87932,4013.8,4013.7,1.02968132]
[1758921406506,0.66952,4013.8,4013.7,2.81893556]
[1758921406810,0.66952,4013.8,4013.7,2.37080556]
[1758921407914,0.66952,4013.8,4013.7,1.02968132]
[1758921407915,0.44812,4013.8,4013.7,1.02968132]
[1758921408113,0.66952,4013.8,4013.7,1.02968132]
[1758921408807,0.7919361,4013.8,4013.7,1.02968132]
[1758921409207,1.1106361,4013.8,4013.7,1.02968132]
[1758921409407,1.3204361,4013.8,4013.7,1.02968132]
[1758921410005,1.3204361,4013.8,4013.7,0.77768132]
[1758921410206,1.3204361,4013.8,4013.7,1.02968132]
[1758921411117,1.3204361,4013.8,4013.7,0.00248132]
[1758921411313,1.3204361,4013.8,4013.7,0.25448132]
[1758921413007,1.82057079,4013.8,4013.7,0.25448132]
[1758921414217,1.3204361,4013.8,4013.7,0.25448132]
[1758921415213,1.3204361,4013.8,4013.7,0.00248132]
[1758921415511,1.3204361,4013.8,4013.7,0.25448132]
[1758921415910,1.82044981,4013.8,4013.7,0.25448132]
[1758921416107,1.82044981,4013.8,4013.7,0.00248132]
[1758921416310,1.82044981,4013.8,4013.7,0.25448132]
[1758921417414,1.82044981,4013.8,4013.1,3.7698]
[1758921417415,1.19808,4013.2,4013.1,3.7698]
[1758921417617,1.3204961,4013.2,4013.1,0.814]
[1758921418417,1.32316005,4013.2,4013.1,0.81640019]
[1758921419408,1.32316005,4013.2,4013.1,0.47790019]
[1758921419609,1.32316005,4013.2,4013.1,0.25440019]
[1758921420420,1.32311149,4013.2,4013.1,0.25440019]
[1758921420711,1.82289197,4013.2,4013.1,0.25440019]
[1758921421107,1.82289197,4013.2,4012.8,0.3385]
[1758921421108,0.4312,4012.5,4012.4,1.77782424]
[1758921421314,1.32052754,4012.5,4012.4,1.0272]
[1758921421714,0.4312,4012.3,4012.2,1.56462424]
[1758921421907,1.32054754,4012.3,4012.2,0.814]
[1758921422113,1.32054754,4012.3,4012.2,0.56435498]
[1758921422415,1.32054754,4012.3,4012.2,0.00235498]
[1758921422918,1.32054754,4012.3,4012.2,0.25435498]
[1758921425011,1.32054754,4012.3,4012.2,0.00235498]
[1758921425814,0.44835,4011.7,4011.6,3.2078]
[1758921426118,0.7319,4011.5,4011.4,1.0105]
[1758921426319,0.85426754,4011.5,4011.4,1.0105]
[1758921427021,1.43153754,4011.5,4011.4,0.25431702]
[1758921429009,1.43153754,4011.5,4011.4,0.00231702]
[1758921429225,0.87786,4010.7,4010.6,3.7364]
[1758921429411,1.31532754,4010.7,4010.6,3.9884]
[1758921430122,0.86686754,4010.7,4010.6,4.21309997]
[1758921430515,0.86686754,4010.7,4010.6,4.66156997]
[1758921430516,1.31532754,4010.7,4010.6,4.66156997]
[1758921430823,0.12236754,4010.7,4010.6,4.66156997]
[1758921431123,0.3151,4011.0,4010.9,0.4297]
[1758921431124,0.65542,4011.0,4010.9,0.4297]
[1758921431422,0.77692212,4011.0,4010.9,0.6817]
[1758921431717,0.77692212,4011.0,4010.9,1.0035]
[1758921431918,1.09202212,4011.0,4010.9,1.0035]
[1758921432420,1.31442212,4011.0,4010.9,1.0035]
[1758921438829,1.31442212,4011.0,4010.9,1.45194]
[1758921439329,1.31442212,4011.0,4010.9,1.0035]
[1758921440026,0.99932212,4011.0,4010.9,1.0035]
[1758921441225,1.33012212,4011.0,4010.9,1.0035]
[1758921442319,0.12150212,4011.0,4010.9,1.45194]
[1758921443318,0.56992212,4011.0,4010.9,1.45194]
[1758921443826,0.12150212,4011.0,4010.9,1.45194]
[1758921444937,0.4484,4011.3,4011.2,0.4484]
[1758921445232,0.57347621,4011.3,4011.2,1.4538]
[1758921445428,0.12507621,4011.3,4011.2,1.4538]
[1758921445632,0.57346621,4011.3,4011.2,1.4538]
[1758921446825,0.12507621,4011.3,4011.2,1.4538]
[1758921447227,0.57346621,4011.3,4011.2,1.4538]
[1758921447534,0.57346621,4011.3,4011.2,1.0054]
[1758921447926,0.57346621,4011.3,4011.2,1.4538]
[1758921450535,1.32906621,4011.3,4011.2,1.0054]
[1758921451633,1.32906621,4011.3,4011.2,0.7534]
[1758921451937,1.20401,4011.1,4011.0,0.5269]
[1758921452136,1.32908621,4011.1,4011.0,0.7789]
[1758921452323,1.32908621,4011.1,4011.0,1.0054]
[1758921452528,1.32908621,4011.1,4011.0,0.7534]
[1758921452730,1.32908621,4011.1,4011.0,1.0054]
[1758921452933,1.32908621,4011.1,4011.0,1.58852]
[1758921453135,0.99828621,4011.1,4011.0,1.58852]
[1758921453330,0.57348621,4011.1,4011.0,1.58852]
[1758921453630,0.4484,4011.2,4011.1,0.65711]
[1758921453836,0.5741236,4011.2,4011.1,1.20181]
[1758921454738,0.1257236,4011.2,4011.1,1.20181]
[1758921457039,0.1257236,4011.2,4011.1,2.54293424]
[1758921457238,0.5741236,4011.2,4011.1,1.20181]
[1758921457839,0.5741236,4011.2,4011.1,0.7534]
[1758921458331,0.7832236,4011.2,4011.1,1.20181]
[1758921460736,1.3297236,4011.2,4011.1,1.0054]
[1758921461334,0.5741236,4011.2,4011.1,1.0054]
[1758921461738,0.7832236,4011.2,4011.1,1.0054]
[1758921462238,0.7832236,4011.2,4011.1,2.34652424]
[1758921462438,0.7832236,4011.2,4011.1,1.0054]
[1758921462639,1.1205236,4011.2,4011.1,1.0054]
[1758921463137,1.1205236,4011.2,4011.1,2.34652424]
[1758921463738,1.1205236,4011.2,4011.1,2.79493424]
[1758921464637,1.1205236,4011.2,4011.1,2.34652424]
[1758921464932,0.7832236,4011.2,4011.1,2.79493424]
[1758921466029,0.1257236,4011.2,4011.1,2.79493424]
[1758921466235,0.1257236,4011.2,4011.1,1.45381]
[1758921467634,0.1257236,4011.2,4011.1,4.66161]
[1758921467833,0.1257236,4011.2,4011.1,9.66161]
[1758921468741,0.1257236,4011.2,4011.1,11.44177319]
[1758921469138,0.1257236,4011.2,4011.1,9.66161]
[1758921470648,0.1257236,4011.2,4011.1,11.45254838]
[1758921470843,0.5434,4012.1,4012.0,1.30451]
[1758921471045,0.2061,4012.1,4012.0,1.55651]
[1758921471438,0.6544,4012.1,4012.0,1.55651]
[1758921471739,0.3373,4012.4,4012.1,0.4483]
[1758921471936,0.5434,4012.4,4012.3,0.7287]
[1758921472133,1.04842039,4012.4,4012.3,0.7287]
[1758921472636,1.12054,4012.9,4012.8,0.2125]
[1758921472637,0.2061,4012.9,4012.8,0.2125]
[1758921472841,0.44821,4012.9,4012.8,1.12112]
[1758921473044,0.44821,4012.9,4012.8,1.42892]
[1758921473438,0.4482,4013.1,4012.9,0.44821]
[1758921473744,0.2061,4013.1,4013.0,1.3044]
[1758921474044,0.65429,4013.1,4013.0,1.3044]
[1758921474841,0.00266395,4013.2,4013.1,0.86909]
[1758921475036,0.00266395,4013.2,4013.1,1.42889]
[1758921475241,0.00266395,4013.2,4013.1,0.9807]
[1758921475746,0.00266395,4013.2,4013.1,1.42889]
[1758921481142,3.2078,4014.0,4013.9,1.1768]
[1758921481350,3.2078,4014.0,4013.9,1.4288]
[1758921481642,3.4139,4014.6,4014.5,1.30423]
[1758921481848,0.3373,4015.0,4014.8,0.448]
[1758921482039,0.3373,4015.4,4015.3,0.44794]
[1758921482235,0.76942688,4015.4,4015.3,0.9807]
[1758921482440,0.43212688,4015.4,4015.3,0.9807]
[1758921482642,0.00312688,4015.4,4015.3,0.9807]
[1758921483442,3.4139,4016.1,4016.0,1.09567]
[1758921483645,3.2078,4016.1,4016.0,1.55607]
[1758921484247,3.2078,4016.1,4016.0,1.1082]
[1758921484649,3.20958802,4016.1,4016.0,1.1082]
[1758921484955,0.00178802,4016.1,4016.0,1.1082]
[1758921486158,1.1941,4015.7,4015.6,0.2231]
[1758921486346,1.1941,4015.7,4015.6,0.4751]
[1758921486848,0.422,4015.2,4015.1,0.5452]
[1758921487050,0.7462,4015.2,4015.1,0.7972]
[1758921487252,0.7462,4015.2,4015.1,0.4751]
[1758921488652,0.8812,4015.0,4014.8,0.00229633]
[1758921488855,1.32918,4015.0,4014.9,0.252]
[1758921490851,3.532,4015.3,4015.2,0.44795]
[1758921491054,3.532,4015.3,4014.9,1.0066]
[1758921491055,0.44795,4015.2,4014.9,0.252]
[1758921491353,0.8812,4015.0,4014.9,0.2231]
[1758921491557,0.8812,4015.0,4014.9,0.252]
[1758921492259,0.8812,4015.0,4014.9,0.7972]
[1758921492551,0.7462,4015.0,4014.9,0.7572]
[1758921492752,0.7462,4015.0,4014.9,1.0092]
[1758921492949,1.22609,4014.9,4014.8,0.00229633]
[1758921493151,1.34557986,4014.9,4014.8,0.00229633]
[1758921493555,42.14557986,4014.9,4014.8,0.00229633]
[1758921494461,0.44808,4014.1,4014.0,0.3299]
[1758921494652,0.7781,4013.9,4013.8,3.9714]
[1758921494851,0.7781,4013.9,4013.8,4.2234]
[1758921494852,0.55918986,4013.9,4013.8,4.2234]
[1758921495252,0.55927695,4013.9,4013.8,4.2234]
[1758921495452,0.55927695,4013.9,4013.8,4.22519498]
[1758921497047,1.00737695,4013.9,4013.8,4.22519498]
[1758921497459,0.55927695,4013.9,4013.8,4.67330498]
[1758921497763,0.78627695,4013.9,4013.8,4.22519498]
[1758921499664,0.78627695,4013.9,4013.8,4.67330498]
[1758921499859,0.78627695,4013.9,4013.8,4.22519498]
[1758921501962,0.56767695,4013.9,4013.8,4.67330498]
[1758921502162,0.56767695,4013.9,4013.8,4.22519498]
[1758921502969,0.11957695,4013.9,4013.8,4.67330498]
[1758921503769,3.65581,4014.7,4014.6,0.3299]
[1758921504067,3.65581,4014.7,4014.6,1.0156]
[1758921504456,3.87441,4014.7,4014.6,1.0156]
[1758921505058,3.87441,4014.7,4014.6,1.46362]
[1758921505059,3.2078,4014.7,4014.6,1.46362]
[1758921505466,4.43391,4014.7,4014.6,1.0156]
[1758921505664,4.43391,4014.7,4014.6,0.8036]
[1758921506264,1.22617,4014.2,4014.1,1.21168]
[1758921506460,3.2078,4014.7,4014.3,0.4337]
[1758921506461,0.66665,4014.4,4014.3,0.4337]
[1758921506769,0.66665,4014.4,4014.3,1.0156]
[1758921510360,0.66665,4014.4,4014.3,1.46366]
[1758921510662,0.66665,4014.4,4014.3,1.0156]
[1758921510964,3.2078,4014.7,4014.6,0.7636]
[1758921510965,3.65581,4014.7,4014.6,0.7636]
[1758921511165,4.43391,4014.7,4014.6,1.0156]
[1758921511875,3.87441,4014.7,4014.6,1.46362]
[1758921512172,3.87441,4014.7,4014.6,1.0156]
[1758921512364,4.43391,4014.7,4014.6,1.0156]
[1758921512560,4.43391,4014.7,4014.6,0.7636]
[1758921512762,0.2186,4014.2,4014.1,0.88178]
[1758921513071,0.44806,4014.3,4014.2,0.88177]
[1758921513258,0.44806,4014.3,4014.2,1.21167]
[1758921513969,0.44805,4014.4,4014.3,1.21165]
[1758921514166,0.44805,4014.4,4014.3,0.7636]
[1758921514364,1.22615,4014.4,4014.3,0.7636]
[1758921514571,0.66664,4014.4,4014.3,1.21166]
[1758921515272,0.66664,4014.4,4014.3,1.46366]
[1758921515865,0.2186,4014.6,4014.5,1.34253]
[1758921516065,0.66662,4014.6,4014.5,1.34253]
[1758921516372,0.66662,4014.6,4014.5,0.8945]
[1758921516572,0.66662,4014.6,4014.5,1.34253]
[1758921516871,0.3384,4014.9,4014.8,0.7636]
[1758921516872,0.2186,4014.9,4014.8,0.7636]
[1758921517069,0.2186,4014.9,4014.8,1.0156]
[1758921517266,0.66659,4014.9,4014.8,1.0156]
[1758921517968,1.22609,4014.9,4014.8,0.7636]
[1758921518165,1.22609,4014.9,4014.8,0.3299]
[1758921518370,0.9012,4014.5,4014.4,3.2078]
[1758921518564,1.34923,4014.5,4014.4,3.4598]
[1758921518763,1.34923,4014.5,4014.4,3.6815]
[1758921519270,1.34923,4014.5,4014.4,4.0114]
[1758921520472,1.22613,4014.5,4014.4,4.2234]
[1758921520876,1.22613,4014.5,4014.4,1.0156]
[1758921522975,1.36203,4014.5,4014.4,0.4737]
[1758921523871,0.44808,4014.1,4014.0,1.34317947]
[1758921524079,1.1992,4013.9,4013.8,0.53169498]
[1758921524277,1.00415023,4013.9,4013.8,1.00479498]
[1758921524575,0.79245023,4013.9,4013.8,0.75279498]
[1758921524775,0.79245023,4013.9,4013.8,1.00479498]
[1758921525273,0.12215023,4013.9,4013.8,1.00479498]
[1758921525473,0.12215023,4013.9,4013.8,1.45290498]
[1758921525676,0.57025023,4013.9,4013.8,1.00479498]
[1758921525877,1.32135023,4013.9,4013.8,1.00479498]
[1758921529274,1.32135023,4013.9,4013.8,0.00179498]
[1758921529479,1.32135023,4013.9,4013.8,0.25379498]
[1758921531666,1.32135023,4013.9,4013.8,0.00179498]
[1758921532073,1.32135023,4013.9,4013.8,0.25379498]
[1758921533179,1.32135023,4013.9,4013.8,0.00179498]
[1758921533379,1.32135023,4013.9,4013.8,0.25379498]
[1758921534280,1.32115656,4013.9,4013.8,0.25379498]
[1758921536770,0.1359,4013.5,4012.9,0.3205]
[1758921536975,1.1993,4013.0,4012.9,0.5299]
[1758921537177,1.32125656,4013.0,4012.9,1.003]
[1758921537787,1.32434078,4013.0,4012.9,1.00599439]
[1758921538378,1.20238422,4013.0,4012.9,1.00599439]
[1758921538583,1.32417224,4013.0,4012.9,1.00599439]
[1758921539277,1.00697224,4013.0,4012.9,1.00599439]
[1758921539776,0.57307224,4013.0,4012.9,1.45420439]
[1758921540374,0.12487224,4013.0,4012.9,1.45420439]
[1758921540884,0.57307224,4013.0,4012.9,1.45420439]
[1758921541276,0.12487224,4013.0,4012.9,1.45420439]
[1758921541681,0.57307224,4013.0,4012.9,1.45420439]
[1758921542085,0.12487224,4013.0,4012.9,1.45420439]
[1758921543689,0.57307224,4013.0,4012.9,1.45420439]
[1758921543987,0.12487224,4013.0,4012.9,1.45420439]
[1758921544485,0.12487224,4013.0,4012.9,6.45420439]
[1758921544781,0.67029,4014.0,4013.6,0.3205]
[1758921544982,0.98749,4014.0,4013.9,0.751]
[1758921545489,1.33509,4014.0,4013.9,0.751]
[1758921545682,1.19922,4013.7,4013.6,3.2078]
[1758921545885,1.19929,4013.1,4013.0,1.3299]
[1758921546075,1.19929,4013.1,4013.0,1.5819]
[1758921546076,0.7511,4013.1,4013.0,1.5819]
[1758921546277,0.44818,4013.2,4013.1,0.86909]
[1758921546579,0.44818,4013.2,4013.1,1.19589]
[1758921548183,0.3135,4013.4,4013.1,0.7477]
[1758921548385,45.20461,4013.8,4013.7,0.7477]
[1758921548583,45.20461,4013.8,4013.7,0.9997]
[1758921548888,4.40461,4013.8,4013.7,0.9997]
[1758921550388,4.40461,4013.8,4013.7,0.6729]
[1758921550690,4.40461,4013.8,4013.7,0.9997]
[1758921551684,4.40461,4013.8,4013.7,0.4594]
[1758921552795,4.40461,4013.8,4013.7,0.7977]
[1758921553483,4.40461,4013.8,4013.7,0.4594]
[1758921553684,4.40461,4013.8,4013.7,0.252]
[1758921554191,4.40461,4013.8,4013.7,0.4604]
[1758921554587,3.65591,4013.8,4013.7,1.0186]
[1758921554790,4.42391,4013.8,4013.7,1.0186]
[1758921555788,4.42391,4013.8,4013.7,1.46672]
[1758921556687,4.09657748,4013.8,4013.7,1.46672]
[1758921556992,0.56888748,4013.8,4013.7,1.46672]
[1758921557690,0.12077748,4013.8,4013.7,1.46672]
[1758921557891,0.12077748,4013.8,4013.7,6.46672]
[1758921558699,0.00266532,4014.0,4013.9,1.2147]
[1758921559586,1.21595,4015.2,4015.1,0.7666]
[1758921559894,0.768,4015.2,4015.1,1.46657]
[1758921560283,3.2078,4015.4,4015.1,1.46657]
[1758921560493,0.5543,4015.7,4015.6,0.7666]
[1758921560692,0.55638398,4015.7,4015.6,1.0186]
[1758921560890,0.77008398,4015.7,4015.6,1.0186]
[1758921562389,0.768,4015.3,4015.2,3.2078]
[1758921562588,0.768,4015.3,4015.2,3.4598]
[1758921562790,0.768,4015.3,4015.2,3.6682]
[1758921563496,0.768,4015.3,4015.2,3.2078]
[1758921563694,0.768,4015.3,4015.2,3.4598]
[1758921564300,0.768,4015.3,4015.2,3.6682]
[1758921564497,0.768,4015.3,4015.2,4.2264]
[1758921564697,0.768,4015.3,4015.2,3.6682]
[1758921564898,0.768,4015.3,4015.2,3.4598]
[1758921565700,0.768,4015.3,4015.2,3.6682]
[1758921565890,0.768,4015.3,4015.2,0.7987]
[1758921566092,0.768,4015.3,4015.2,0.4604]
[1758921567295,0.768,4015.3,4015.2,0.2084]
[1758921567503,0.768,4014.8,4014.7,0.2084]
[1758921567802,1.21607,4014.2,4014.1,3.7545]
[1758921568194,1.21607,4014.2,4014.1,4.0065]
[1758921568399,1.33644976,4014.2,4014.1,3.6682]
[1758921568701,1.35179,4014.0,4013.9,0.2084]
[1758921568898,1.47216976,4014.0,4013.9,0.4604]
[1758921569198,1.47216976,4014.0,4013.9,1.0186]
[1758921569792,1.47219094,4014.0,4013.9,0.4604]
[1758921570800,1.47219094,4014.0,4013.9,0.2084]
[1758921571001,1.47219094,4014.0,4013.9,0.4604]
[1758921571398,1.35179,4014.0,4013.9,0.4604]
[1758921571598,0.77932,4013.7,4013.6,3.7545]
[1758921571803,1.33654656,4013.7,4013.6,3.6682]
[1758921572204,1.33654656,4013.7,4013.6,3.2078]
[1758921572500,1.33654656,4013.7,4013.6,4.0065]
[1758921573905,1.33654656,4013.7,4013.6,4.2264]
[1758921574601,0.12042656,4013.7,4013.6,4.67453]
[1758921574803,0.79164656,4013.7,4013.6,4.67453]
[1758921575409,1.33654656,4013.7,4013.6,3.4162]
[1758921575702,1.33654656,4013.7,4013.6,3.2078]
[1758921575903,1.33654656,4013.7,4013.6,3.4598]
[1758921576399,1.33654656,4013.7,4013.6,3.2078]
[1758921576599,1.21618,4013.2,4013.1,3.4162]
[1758921576798,1.33660656,4013.2,4013.1,3.6682]
[1758921577002,1.33660656,4013.2,4013.1,4.2264]
[1758921577698,1.33660656,4013.2,4013.1,3.4162]
[1758921577904,1.33660656,4013.2,4013.1,3.2078]
[1758921578204,1.3519,4013.0,4012.9,0.21139439]
[1758921578405,1.47232656,4013.0,4012.9,0.25499439]
[1758921578906,1.47232656,4013.0,4012.9,0.00299439]
[1758921579303,6.47232656,4013.0,4012.9,0.25499439]
[1758921579606,1.47232656,4013.0,4012.9,0.25499439]
[1758921580001,1.47222195,4013.0,4012.9,0.25499439]
[1758921580504,42.27222195,4013.0,4012.9,0.25499439]
[1758921584309,42.27121446,4013.0,4012.9,0.25499439]
[1758921585510,1.33551446,4013.0,4012.9,1.02409439]
[1758921585707,0.79061446,4013.0,4012.9,1.02409439]
[1758921586511,1.10461446,4013.0,4012.9,1.02409439]
[1758921587805,0.79061446,4013.0,4012.9,1.02409439]
[1758921588515,1.10461446,4013.0,4012.9,1.02409439]
[1758921589012,0.56751446,4013.0,4012.9,1.02409439]
[1758921589414,1.10271446,4013.0,4012.9,1.02409439]
[1758921591612,1.31141446,4013.0,4012.9,1.02409439]
[1758921593016,1.31141446,4013.0,4012.9,0.00299439]
[1758921593017,1.43504349,4013.0,4012.9,0.00299439]
[1758921593520,1.43504349,4013.0,4012.9,0.22799439]
[1758921593719,42.23504349,4013.0,4012.9,0.22799439]
[1758921594221,42.23504349,4013.0,4012.9,0.00299439]
[1758921597714,42.23533865,4013.0,4012.9,0.00299439]
[1758921600828,42.23543221,4013.0,4012.9,0.00299439]
[1758921601024,46.78723221,4013.0,4012.1,3.2078]
[1758921601327,1.19225,4011.7,4011.6,3.6848]
[1758921601624,1.19225,4011.7,4011.6,4.2289]
[1758921601625,0.56808221,4011.7,4011.6,4.2289]
[1758921601816,1.10328221,4011.7,4011.6,4.2289]
[1758921602217,1.10619754,4011.7,4011.6,4.23150437]
[1758921602825,1.31489754,4011.7,4011.6,4.23150437]
[1758921603826,0.57099754,4011.7,4011.6,4.23150437]
[1758921608928,0.57108886,4011.7,4011.6,4.23150437]
[1758921609428,0.78638886,4011.7,4011.6,4.23150437]
[1758921609626,1.09858886,4011.7,4011.6,4.23150437]
[1758921609826,1.32128886,4011.7,4011.6,4.23150437]
[1758921611630,1.32128886,4011.7,4011.6,0.00260437]
[1758921611837,1.32128886,4011.7,4011.6,0.25460437]
[1758921612130,1.32128886,4011.7,4011.6,0.00260437]
[1758921612324,1.32128886,4011.7,4011.6,0.25460437]
[1758921612626,42.12128886,4011.7,4011.6,0.25460437]
[1758921612834,42.12128886,4011.7,4011.6,1.02830437]
[1758921613227,1.32128886,4011.7,4011.6,1.02830437]
[1758921613632,1.32128886,4011.7,4011.6,0.77630437]
[1758921613820,1.32128886,4011.7,4011.6,1.02830437]
[1758921617536,0.78968886,4011.7,4011.6,1.02830437]
[1758921617833,1.33708886,4011.7,4011.6,1.02830437]
[1758921618637,1.33708886,4011.7,4011.6,0.81410437]
[1758921620728,1.33708886,4011.7,4011.6,1.02830437]
[1758921621639,1.33708886,4011.7,4011.6,0.25460437]
[1758921625341,1.33708886,4011.7,4011.6,0.00260437]
[1758921626137,1.84601476,4011.7,4011.6,0.00260437]
[1758921627541,5.05381476,4011.7,4011.6,0.00260437]
[1758921630549,45.85381476,4011.7,4011.6,0.00260437]
[1758921635840,45.85381476,4011.7,4011.6,4.37e-06]
[1758921636647,0.88734,4010.9,4010.8,4.77336638]
[1758921636838,1.33426353,4010.9,4010.8,4.0193]
[1758921637252,1.33426353,4010.9,4010.8,4.2335]
[1758921637748,1.33426353,4010.9,4010.8,4.23639102]
[1758921639048,0.56826353,4010.9,4010.8,4.23639102]
[1758921641247,1.11396353,4010.9,4010.8,4.23639102]
[1758921643554,1.11396353,4010.9,4010.8,3.98439102]
[1758921643752,1.11396353,4010.9,4010.8,4.23639102]
[1758921650449,0.56826353,4010.9,4010.8,4.23639102]
[1758921650658,0.56826353,4010.9,4010.8,5.5772574]
[1758921650859,0.56826353,4010.9,4010.8,6.0257074]
[1758921651459,0.56826353,4010.9,4010.8,5.5772574]
[1758921652253,0.56826353,4010.9,4010.8,6.0257074]
[1758921652851,1.11176353,4010.9,4010.8,5.3252574]
[1758921653056,1.32066353,4010.9,4010.8,1.02859102]
[1758921653551,3.62424601,4010.9,4010.8,0.00289102]
[1758921655658,1.83077374,4010.9,4010.8,0.00289102]
[1758921655850,1.83077374,4010.9,4010.8,0.20869102]
[1758921656056,1.83077374,4010.9,4010.8,0.51859102]
[1758921656754,1.83077374,4010.9,4010.8,0.74109102]
[1758921657057,0.56826353,4010.9,4010.8,1.18952102]
[1758921657455,0.56826353,4010.9,4010.8,0.74109102]
[1758921658048,0.79296353,4010.9,4010.8,0.74109102]
[1758921659653,0.79296353,4010.9,4010.8,0.99309102]
[1758921660357,1.11176353,4010.9,4010.8,0.99309102]
[1758921660559,0.11982353,4010.9,4010.8,2.88076114]
[1758921660753,0.11982353,4010.9,4010.8,2.62876114]
[1758921660954,0.11982353,4010.9,4010.8,2.88076114]
[1758921661252,0.11982353,4010.9,4010.8,12.42942752]
[1758921662056,0.11982353,4010.9,4010.8,11.08856114]
[1758921662452,0.56824353,4010.9,4010.8,11.08856114]
[1758921662651,1.11174353,4010.9,4010.8,5.54407741]
[1758921662853,1.32064353,4010.9,4010.8,4.20089102]
[1758921663856,2.75988365,4010.9,4010.8,3.72639102]
[1758921664061,3.26915577,4010.9,4010.8,3.46269102]
[1758921665258,3.26915577,4010.9,4010.8,0.25489102]
[1758921666862,1.82991565,4010.9,4010.8,0.77119102]
[1758921667162,1.82991565,4010.9,4010.8,0.99399102]
[1758921667562,1.07751565,4010.9,4010.8,0.99399102]
[1758921667756,0.56824353,4010.9,4010.8,0.99399102]
[1758921669263,1.08884353,4010.9,4010.8,0.99399102]
[1758921669652,0.77704353,4010.9,4010.8,0.99399102]
[1758921670462,0.56824353,4010.9,4010.8,0.99399102]
[1758921671166,0.56824353,4010.9,4010.8,1.44243102]
[1758921671365,0.56824353,4010.9,4010.8,0.99399102]
[1758921671562,0.11982353,4010.9,4010.8,1.44243102]
[1758921671761,3.5196,4011.5,4011.1,0.7396]
[1758921671762,0.4484,4011.2,4011.1,0.7396]
[1758921671968,0.4484,4011.2,4011.1,2.43084012]
[1758921672167,0.4484,4011.2,4011.1,2.87924012]
[1758921672559,0.76851533,4011.7,4011.6,0.4344]
[1758921672760,1.72305394,4011.7,4011.6,1.0226]
[1758921672966,0.45124533,4011.7,4011.6,1.0226]
[1758921674367,0.45124533,4011.7,4011.6,2.91018012]
[1758921674566,0.00291533,4011.7,4011.6,2.91018012]
[1758921674959,0.45124533,4011.7,4011.6,2.91018012]
[1758921675560,0.00291533,4011.7,4011.6,2.91018012]
[1758921675760,0.00291533,4011.7,4011.6,4.25328745]
[1758921677260,0.45124533,4011.7,4011.6,3.80494745]
[1758921677462,1.21684533,4011.7,4011.6,1.0226]
[1758921677762,0.66784533,4011.7,4011.6,0.7706]
[1758921677966,0.45124533,4011.7,4011.6,1.0226]
[1758921679271,1.00204533,4011.7,4011.6,1.0226]
[1758921679464,1.21684533,4011.7,4011.6,1.0226]
[1758921680966,1.21684533,4011.7,4011.6,0.7706]
[1758921681270,1.21684533,4011.7,4011.6,0.6864]
[1758921683174,1.21684533,4011.7,4011.6,1.0226]
[1758921683873,1.33440494,4011.7,4011.6,1.0226]
[1758921684669,1.21684533,4011.7,4011.6,1.0226]
[1758921684866,1.33442346,4011.7,4011.6,1.0226]
[1758921685072,0.78542346,4011.7,4011.6,2.46184012]
[1758921688081,0.78542346,4011.7,4011.6,2.91018012]
[1758921688483,0.78542346,4011.7,4011.6,2.46184012]
[1758921689382,0.78542346,4011.7,4011.6,2.91018012]
[1758921689684,0.12049346,4011.7,4011.6,2.91018012]
[1758921690584,0.56882346,4011.7,4011.6,2.91018012]
[1758921690784,0.45124533,4011.7,4011.6,2.46184012]
[1758921691185,0.00291533,4011.7,4011.6,2.91018012]
[1758921691482,0.56894581,4011.7,4011.6,2.91018012]
[1758921691683,0.45124533,4011.7,4011.6,2.91018012]
[1758921692382,0.56893977,4011.7,4011.6,2.91018012]
[1758921692984,0.45124533,4011.7,4011.6,2.91018012]
[1758921693683,0.56895267,4011.7,4011.6,2.65818012]
[1758921693980,0.00291533,4011.7,4011.6,2.46184012]
[1758921694179,0.56895352,4011.7,4011.6,2.46184012]
[1758921694985,0.56895352,4011.7,4011.6,2.91018012]
[1758921695679,0.12062352,4011.7,4011.6,2.91018012]
[1758921696077,0.56895352,4011.7,4011.6,2.91018012]
[1758921697383,0.12062352,4011.7,4011.6,4.25328745]
[1758921697886,0.56895352,4011.7,4011.6,4.25328745]
[1758921698289,0.56895352,4011.7,4011.6,2.91018012]
[1758921698488,0.12062352,4011.7,4011.6,2.91018012]
[1758921699891,0.12062352,4011.7,4011.6,7.91018012]
[1758921700493,0.12062352,4011.7,4011.6,2.91018012]
[1758921701087,0.66784533,4011.7,4011.6,2.65818012]
[1758921701284,1.33473194,4011.7,4011.6,2.46184012]
[1758921702190,1.33473194,4011.7,4011.6,0.2204]
[1758921702386,1.31015,4011.5,4011.4,0.2233]
[1758921702586,1.42803661,4011.5,4011.4,0.7839]
[1758921702792,1.42803661,4011.5,4011.4,1.0062]
[1758921703381,0.11788661,4011.5,4011.3,3.962]
[1758921703687,1.18474,4011.6,4011.5,0.7542]
[1758921703888,1.30540068,4011.6,4011.5,2.09770127]
[1758921705289,1.30540068,4011.6,4011.5,2.34970127]
[1758921707896,0.99155,4011.5,4011.4,1.34350127]
[1758921708097,1.43081068,4011.5,4011.4,1.59550127]
[1758921708497,1.43081068,4011.5,4011.4,1.81880127]
[1758921708895,1.18476,4011.4,4011.3,3.2078]
[1758921709204,1.30542068,4011.4,4011.3,0.252]
[1758921709792,1.30538822,4011.4,4011.3,0.252]
[1758921710095,0.4484,4011.1,4011.0,1.34350127]
[1758921710292,0.4484,4011.1,4010.8,4.95853114]
[1758921710293,0.76702,4010.9,4010.8,4.55419229]
[1758921710496,1.30544822,4010.9,4010.8,3.43399102]
[1758921710703,1.30544822,4010.9,4010.8,3.68599102]
[1758921712594,1.30544822,4010.9,4010.8,3.43399102]
[1758921712803,1.30544822,4010.9,4010.8,3.68599102]
[1758921714396,1.30544822,4010.9,4010.8,0.00289102]
[1758921714596,7.74468834,4010.9,4010.8,0.25489102]
[1758921714903,6.30544822,4010.9,4010.8,0.25489102]
[1758921717501,6.30544822,4010.9,4010.8,1.00909102]
[1758921717902,1.09634822,4010.9,4010.8,2.44833114]
[1758921718296,1.09604071,4010.9,4010.8,2.44833114]
[1758921719604,1.30514071,4010.9,4010.8,1.00909102]